fUSD/lending_fUSD_20250720
["ID","MTS","AMOUNT","RATE_DAILY","PERIOD"]
[373411794,1752989471569,-580.94,0.00019726,2]
[373411795,1752989471580,-170.952122,0.00019726,2]
[373411796,1752989471595,-480.0,0.00019726,2]
[373411797,1752989471605,-480.0,0.00019726,2]
[373411798,1752989471615,-480.0,0.00019726,2]
[373411799,1752989471627,-170.952124,0.00019726,2]
[373411800,1752989471638,-480.0,0.00019726,2]
[373411801,1752989471647,-551.42,0.00019726,2]
[373411802,1752989471658,-480.0,0.00019726,2]
[373411803,1752989471668,-2183.79,0.00019726,2]
[373411804,1752989471677,-480.0,0.00019726,2]
[373411805,1752989471687,-721.71,0.00019726,2]
[373411806,1752989471697,-3940.47,0.00019726,2]
[373411807,1752989471707,-978.15,0.00019726,2]
[373411808,1752989471716,-1467.13,0.00019726,2]
[373411809,1752989471726,-735.45,0.00019726,2]
[373411810,1752989471736,-283.43290475,0.00019726,2]
[373411811,1752989471746,-480.0,0.00019726,2]
[373411812,1752989471756,-513.27,0.00019726,2]
[373411813,1752989471765,-480.0,0.00019726,2]
[373411814,1752989471774,-1837.11,0.00019726,2]
[373411815,1752989471784,-480.0,0.00019726,2]
[373411816,1752989471794,-796.25,0.00019726,2]
[373411817,1752989471804,-618.52,0.00019726,2]
[373411818,1752989471813,-480.0,0.00019726,2]
[373411819,1752989471823,-995.79,0.00019726,2]
[373411820,1752989471833,-604.84,0.00019726,2]
[373411821,1752989471843,-480.0,0.00019726,2]
[373411822,1752989471853,-581.68,0.00019726,2]
[373411823,1752989471864,-1231.45,0.00019726,2]
[373411824,1752989471875,-789.99,0.00019726,2]
[373411825,1752989471886,-480.0,0.00019726,2]
[373411826,1752989471896,-1780.72,0.00019726,2]
[373411827,1752989471906,-1111.42,0.00019726,2]
[373411828,1752989471916,-705.48,0.00019726,2]
[373411829,1752989471926,-8037.86,0.00019726,2]
[373411830,1752989471939,-3284.08,0.00019726,2]
[373411831,1752989471949,-3107.59,0.00019726,2]
[373411832,1752989471959,-480.0,0.00019726,2]
[373411833,1752989471968,-1037.79,0.00019726,2]
[373411834,1752989471978,-480.0,0.00019726,2]
[373411835,1752989471988,-1098.54,0.00019726,2]
[373411836,1752989471998,-609.77,0.00019726,2]
[373411837,1752989472008,-480.0,0.00019726,2]
[373411838,1752989472018,-599.29,0.00019726,2]
[373411839,1752989472028,-480.0,0.00019726,2]
[373411840,1752989472038,-673.73,0.00019726,2]
[373411841,1752989472052,-661.0,0.00019726,2]
[373411842,1752989472062,-190.83156029,0.00019726,2]
[373411843,1752989472072,-480.0,0.00019726,2]
[373411844,1752989472082,-480.0,0.00019726,2]
[373411845,1752989472094,-822.08,0.00019726,2]
[373411846,1752989472105,-638.51,0.00019726,2]
[373411847,1752989472114,-480.0,0.00019726,2]
[373411848,1752989472126,-480.0,0.00019726,2]
[373411849,1752989472136,-2821.88,0.00019726,2]
[373411850,1752989472146,-573.68809291,0.00019726,2]
[373411851,1752989472158,-480.0,0.00019726,2]
[373411852,1752989472167,-861.55,0.00019726,2]
[373411853,1752989472177,-1433.3,0.00019726,2]
[373411854,1752989472187,-3713.37,0.00019726,2]
[373411855,1752989472197,-490.4,0.00019726,2]
[373411856,1752989472206,-573.68520244,0.00019726,2]
[373411857,1752989472216,-480.0,0.00019726,2]
[373411858,1752989472226,-480.0,0.00019726,2]
[373411859,1752989472235,-970.96,0.00019726,2]
[373411860,1752989472245,-151.0,0.00019726,2]
[373411861,1752989472255,-1110.81,0.00019726,2]
[373411862,1752989472265,-488.83,0.00019726,2]
[373411863,1752989472275,-924.98,0.00019726,2]
[373411864,1752989472285,-151.0,0.00019726,2]
[373411865,1752989472295,-1143.92,0.00019726,2]
[373411866,1752989472304,-1942.24,0.00019726,2]
[373411867,1752989472314,-1865.06,0.00019726,2]
[373411868,1752989472323,-480.0,0.00019726,2]
[373411869,1752989472333,-480.0,0.00019726,2]
[373411870,1752989472342,-480.0,0.00019726,2]
[373411871,1752989472352,-480.0,0.00019726,2]
[373411872,1752989472363,-480.0,0.00019726,2]
[373411873,1752989472373,-2661.07,0.00019726,2]
[373411874,1752989472383,-1386.53,0.00019726,2]
[373411875,1752989472393,-1282.06,0.00019726,2]
[373411876,1752989472404,-662.17,0.00019726,2]
[373411877,1752989472414,-480.0,0.00019726,2]
[373411878,1752989472424,-480.0,0.00019726,2]
[373411879,1752989472434,-548.66,0.00019726,2]
[373411880,1752989472444,-1091.85,0.00019726,2]
[373411881,1752989472455,-480.0,0.00019726,2]
[373411882,1752989472465,-607.57,0.00019726,2]
[373411883,1752989472476,-480.0,0.00019726,2]
[373411884,1752989472486,-302.531764,0.00019726,2]
[373411885,1752989472497,-1464.86,0.00019726,2]
[373411886,1752989472507,-483.06,0.00019726,2]
[373411887,1752989472518,-480.0,0.00019726,2]
[373411888,1752989472528,-302.531756,0.00019726,2]
[373411889,1752989472538,-456.96140169,0.00019726,2]
[373411890,1752989472548,-5718.46,0.00019726,2]
[373411891,1752989472559,-1012.96,0.00019726,2]
[373411892,1752989472569,-480.0,0.00019726,2]
[373411893,1752989472579,-786.49,0.00019726,2]
[373411894,1752989472590,-994.74,0.00019726,2]
[373411895,1752989472600,-635.8,0.00019726,2]
[373411896,1752989472611,-489.06,0.00019726,2]
[373411897,1752989472621,-480.0,0.00019726,2]
[373411898,1752989472632,-650.01,0.00019726,2]
[373411899,1752989472642,-856.56,0.00019726,2]
[373411900,1752989472653,-1960.62,0.00019726,2]
[373411901,1752989472664,-480.0,0.00019726,2]
[373411902,1752989472674,-480.0,0.00019726,2]
[373411903,1752989472684,-317.97297442,0.00019726,2]
[373411904,1752989472694,-568.77,0.00019726,2]
[373411905,1752989472704,-484.36,0.00019726,2]
[373411906,1752989472714,-662.08,0.00019726,2]
[373411907,1752989472725,-3491.99,0.00019726,2]
[373411908,1752989472735,-480.0,0.00019726,2]
[373411909,1752989472746,-480.0,0.00019726,2]
[373411910,1752989472756,-2617.19,0.00019726,2]
[373411911,1752989472766,-838.32,0.00019726,2]
[373411912,1752989472775,-562.74,0.00019726,2]
[373411913,1752989472787,-480.0,0.00019726,2]
[373411914,1752989472797,-631.6,0.00019726,2]
[373411915,1752989472807,-480.0,0.00019726,2]
[373411916,1752989472817,-480.0,0.00019726,2]
[373411917,1752989472827,-1016.15,0.00019726,2]
[373411918,1752989472837,-21544.09,0.00019726,2]
[373411919,1752989472847,-600.54,0.00019726,2]
[373411920,1752989472857,-156.587,0.00019726,2]
[373411921,1752989472867,-150.0,0.00019731,2]
[373411922,1752989472877,-168.0,0.00019741,2]
[373411923,1752989472886,-150.0,0.00019752,2]
[373411924,1752989472896,-200.0,0.00019759,2]
[373411925,1752989472907,-310.46491208,0.0001976,2]
[373411926,1752989472918,-259.8365768,0.00019762,2]
[373411927,1752989472927,-215.0738,0.00019778,2]
[373411928,1752989472937,-600.0,0.00019791,2]
[373411929,1752989472947,-587.34,0.00019791,2]
[373411930,1752989472957,-1300.0,0.000198,7]
[373411931,1752989472968,-596.04,0.000198,2]
[373411932,1752989472978,-1851.0135884,0.00019808,2]
[373411933,1752989472988,-450.82588241,0.00019808,2]
[373411934,1752989472998,-150.0,0.00019813,2]
[373411935,1752989473008,-150.0,0.00019834,2]
[373411936,1752989473018,-782.2,0.00019834,2]
[373411937,1752989473028,-780.52,0.00019834,2]
[373411938,1752989473235,-500.0,0.00019834,2]
[373411939,1752989473245,-568.51,0.00019834,2]
[373411940,1752989473254,-841.61,0.00019835,2]
[373411941,1752989473264,-151.0,0.00019835,2]
[373411942,1752989473273,-270.707604,0.00019835,2]
[373411943,1752989473283,-480.0,0.00019835,2]
[373411944,1752989473293,-480.0,0.00019835,2]
[373411945,1752989473302,-480.0,0.00019835,2]
[373411946,1752989473311,-480.0,0.00019835,2]
[373411947,1752989473321,-1309.4,0.00019835,2]
[373411948,1752989473330,-480.0,0.00019835,2]
[373411949,1752989473340,-2661.09,0.00019835,2]
[373411950,1752989473350,-604.79,0.00019835,2]
[373411951,1752989473359,-480.0,0.00019835,2]
[373411952,1752989473369,-151.0,0.00019835,2]
[373411953,1752989473378,-480.0,0.00019835,2]
[373411954,1752989473388,-480.0,0.00019835,2]
[373411955,1752989473398,-339.35596653,0.00019835,2]
[373411956,1752989473408,-212.96,0.00019835,2]
[373411957,1752989473418,-682.77,0.00019835,2]
[373411958,1752989473427,-480.0,0.00019835,2]
[373411959,1752989473437,-540.39,0.00019835,2]
[373411960,1752989473447,-480.0,0.00019835,2]
[373411961,1752989473457,-480.0,0.00019835,2]
[373411962,1752989473466,-480.0,0.00019835,2]
[373411963,1752989473476,-611.86,0.00019835,2]
[373411964,1752989473486,-480.0,0.00019835,2]
[373411965,1752989473495,-847.28,0.00019835,2]
[373411966,1752989473505,-811.98,0.00019835,2]
[373411967,1752989473516,-480.0,0.00019835,2]
[373411968,1752989473526,-480.0,0.00019835,2]
[373411969,1752989473535,-480.0,0.00019835,2]
[373411970,1752989473545,-572.32,0.00019835,2]
[373411971,1752989473555,-480.0,0.00019835,2]
[373411972,1752989473565,-480.0,0.00019835,2]
[373411973,1752989473575,-675.62,0.00019835,2]
[373411974,1752989473584,-480.0,0.00019835,2]
[373411975,1752989473594,-480.0,0.00019835,2]
[373411976,1752989473604,-480.0,0.00019835,2]
[373411977,1752989473614,-480.0,0.00019835,2]
[373411978,1752989473624,-480.0,0.00019835,2]
[373411979,1752989473635,-480.0,0.00019835,2]
[373411980,1752989473644,-480.0,0.00019835,2]
[373411981,1752989473654,-536.63644103,0.00019835,2]
[373411982,1752989473664,-480.0,0.00019835,2]
[373411983,1752989473674,-753.07,0.00019835,2]
[373411984,1752989473685,-480.0,0.00019835,2]
[373411985,1752989473694,-619.31,0.00019835,2]
[373411986,1752989473705,-1339.47,0.00019835,2]
[373411987,1752989473714,-480.0,0.00019835,2]
[373411988,1752989473724,-1158.17,0.00019835,2]
[373411989,1752989473734,-480.0,0.00019835,2]
[373411990,1752989473744,-480.0,0.00019835,2]
[373411991,1752989473754,-480.0,0.00019835,2]
[373411992,1752989473764,-480.0,0.00019835,2]
[373411993,1752989473774,-593.59,0.00019835,2]
[373411994,1752989473784,-835.59,0.00019835,2]
[373411995,1752989473794,-480.0,0.00019835,2]
[373411996,1752989473804,-151.0,0.00019835,2]
[373411997,1752989473813,-480.0,0.00019835,2]
[373411998,1752989473824,-516.69,0.00019835,2]
[373411999,1752989473833,-4533.89,0.00019835,2]
[373412000,1752989473843,-480.0,0.00019835,2]
[373412001,1752989473852,-480.0,0.00019835,2]
[373412002,1752989473862,-848.23,0.00019835,2]
[373412003,1752989473871,-480.0,0.00019835,2]
[373412004,1752989473881,-480.0,0.00019835,2]
[373412005,1752989473891,-834.19,0.00019835,2]
[373412006,1752989473901,-480.0,0.00019835,2]
[373412007,1752989473911,-480.0,0.00019835,2]
[373412008,1752989473921,-480.0,0.00019835,2]
[373412009,1752989473931,-480.0,0.00019835,2]
[373412010,1752989473941,-480.0,0.00019835,2]
[373412011,1752989473951,-528.82,0.00019835,2]
[373412012,1752989473960,-411.37549364,0.00019835,2]
[373412013,1752989473970,-480.0,0.00019835,2]
[373412014,1752989473979,-480.0,0.00019835,2]
[373412015,1752989473989,-480.0,0.00019835,2]
[373412016,1752989473998,-480.0,0.00019835,2]
[373412017,1752989474008,-781.89,0.00019835,2]
[373412018,1752989474018,-635.94,0.00019835,2]
[373412019,1752989474027,-480.0,0.00019835,2]
[373412020,1752989474037,-680.69,0.00019835,2]
[373412021,1752989474051,-480.0,0.00019835,2]
[373412022,1752989474060,-480.0,0.00019835,2]
[373412023,1752989474070,-565.07,0.00019835,2]
[373412024,1752989474080,-693.28,0.00019835,2]
[373412025,1752989474092,-3057.61,0.00019835,2]
[373412026,1752989474101,-482.17,0.00019835,2]
[373412027,1752989474111,-480.0,0.00019835,2]
[373412028,1752989474121,-2164.12,0.00019835,2]
[373412029,1752989474131,-1320.33,0.00019835,2]
[373412030,1752989474141,-766.6669594,0.00019835,2]
[373412031,1752989474150,-530.73,0.00019835,2]
[373412032,1752989474161,-532.02,0.00019835,2]
[373412033,1752989474170,-480.0,0.00019835,2]
[373412034,1752989474183,-480.0,0.00019835,2]
[373412035,1752989474192,-480.0,0.00019835,2]
[373412036,1752989474202,-480.0,0.00019835,2]
[373412037,1752989474213,-480.0,0.00019835,2]
[373412038,1752989474229,-480.0,0.00019835,2]
[373412039,1752989474239,-480.0,0.00019835,2]
[373412040,1752989474248,-502.43,0.00019835,2]
[373412041,1752989474258,-1171.57,0.00019835,2]
[373412042,1752989474268,-2437.85,0.00019835,2]
[373412043,1752989474278,-2705.91,0.00019835,2]
[373412044,1752989474288,-248.31726723,0.00019835,2]
[373412045,1752989474297,-480.0,0.00019835,2]
[373412046,1752989474307,-480.0,0.00019835,2]
[373412047,1752989474316,-480.0,0.00019835,2]
[373412048,1752989474326,-480.0,0.00019835,2]
[373412049,1752989474336,-548.19828421,0.00019835,2]
[373412050,1752989474346,-480.0,0.00019835,2]
[373412051,1752989474356,-845.02,0.00019835,2]
[373412052,1752989474366,-487.14,0.00019835,2]
[373412053,1752989474375,-557.8,0.00019835,2]
[373412054,1752989474385,-862.06,0.00019835,2]
[373412055,1752989474394,-477.10072842,0.00019835,2]
[373412056,1752989474405,-1137.62,0.00019835,2]
[373412057,1752989474414,-536.7,0.00019835,2]
[373412058,1752989474423,-567.96,0.00019835,2]
[373412059,1752989474433,-480.0,0.00019835,2]
[373412060,1752989474442,-487.95,0.00019835,2]
[373412061,1752989474452,-480.0,0.00019835,2]
[373412062,1752989474461,-920.6,0.00019835,2]
[373412063,1752989474472,-480.0,0.00019835,2]
[373412064,1752989474482,-1882.7,0.00019835,2]
[373412065,1752989474491,-665.71,0.00019835,2]
[373412066,1752989474500,-1170.57,0.00019835,2]
[373412067,1752989474511,-546.09,0.00019835,2]
[373412068,1752989474520,-991.0,0.00019835,2]
[373412069,1752989474531,-507.4,0.00019835,2]
[373412070,1752989474540,-1122.48,0.00019835,2]
[373412071,1752989474550,-1064.41,0.00019835,2]
[373412072,1752989474559,-480.0,0.00019835,2]
[373412073,1752989474569,-620.05,0.00019835,2]
[373412074,1752989474579,-1197.86,0.00019835,2]
[373412075,1752989474589,-591.75,0.00019835,2]
[373412076,1752989474599,-1679.81,0.00019835,2]
[373412077,1752989474608,-150.0,0.00019835,2]
[373412078,1752989474618,-480.0,0.00019835,2]
[373412079,1752989474627,-645.32,0.00019835,2]
[373412080,1752989474637,-5540.01,0.00019835,2]
[373412081,1752989474646,-1005.5,0.00019835,2]
[373412082,1752989474656,-1103.07,0.00019835,2]
[373412083,1752989474666,-947.41,0.00019835,2]
[373412084,1752989474675,-480.0,0.00019835,2]
[373412085,1752989474685,-480.0,0.00019835,2]
[373412086,1752989474694,-902.23,0.00019835,2]
[373412087,1752989474704,-823.73,0.00019835,2]
[373412088,1752989474713,-480.0,0.00019835,2]
[373412089,1752989474723,-830.46,0.00019835,2]
[373412090,1752989474733,-823.26,0.00019835,2]
[373412091,1752989474742,-495.66,0.00019835,2]
[373412092,1752989474752,-480.0,0.00019835,2]
[373412093,1752989474763,-480.0,0.00019835,2]
[373412094,1752989474772,-480.0,0.00019835,2]
[373412095,1752989474782,-2236.11,0.00019835,2]
[373412096,1752989474791,-822.96,0.00019835,2]
[373412097,1752989474801,-481.9,0.00019835,2]
[373412098,1752989474810,-648.25,0.00019835,2]
[373412099,1752989474819,-480.0,0.00019835,2]
[373412100,1752989474829,-705.02,0.00019835,2]
[373412101,1752989474839,-480.0,0.00019835,2]
[373412102,1752989474848,-570.6,0.00019835,2]
[373412103,1752989474858,-1258.95,0.00019835,2]
[373412104,1752989474868,-616.41152123,0.00019835,2]
[373412105,1752989474879,-492.36,0.00019835,2]
[373412106,1752989474890,-1019.07,0.00019835,2]
[373412107,1752989474901,-480.0,0.00019835,2]
[373412108,1752989474911,-580.94,0.00019835,2]
[373412109,1752989474921,-480.0,0.00019835,2]
[373412110,1752989474931,-480.0,0.00019835,2]
[373412111,1752989474942,-480.0,0.00019835,2]
[373412112,1752989474952,-551.42,0.00019835,2]
[373412113,1752989474962,-480.0,0.00019835,2]
[373412114,1752989474974,-480.0,0.00019835,2]
[373412115,1752989474985,-2183.79,0.00019835,2]
[373412116,1752989474994,-172.46543285,0.00019835,2]
[373412117,1752989475330,-593.60456715,0.00019835,2]
[373412118,1752989475341,-480.0,0.00019835,2]
[373412119,1752989475350,-721.71,0.00019835,2]
[373412120,1752989475360,-3940.47,0.00019835,2]
[373412121,1752989475369,-978.15,0.00019835,2]
[373412122,1752989475379,-1467.13,0.00019835,2]
[373412123,1752989475389,-735.45,0.00019835,2]
[373412124,1752989475400,-480.0,0.00019835,2]
[373412125,1752989475410,-431.83833174,0.00019835,2]
[373412126,1752989475419,-1837.11,0.00019835,2]
[373412127,1752989475428,-480.0,0.00019835,2]
[373412128,1752989475438,-513.27,0.00019835,2]
[373412129,1752989475448,-796.25,0.00019835,2]
[373412130,1752989475457,-618.52,0.00019835,2]
[373412131,1752989475466,-480.0,0.00019835,2]
[373412132,1752989475476,-1465.3,0.00019835,2]
[373412133,1752989475485,-995.79,0.00019835,2]
[373412134,1752989475495,-604.84,0.00019835,2]
[373412135,1752989475505,-607.07,0.00019835,2]
[373412136,1752989475515,-581.68,0.00019835,2]
[373412137,1752989475525,-1231.45,0.00019835,2]
[373412138,1752989475601,-789.99,0.00019835,2]
[373412139,1752989475611,-480.0,0.00019835,2]
[373412140,1752989475621,-1780.72,0.00019835,2]
[373412141,1752989475630,-1111.42,0.00019835,2]
[373412142,1752989475639,-370.47720114,0.00019835,2]
[373412143,1752989476392,-480.0,0.00019287,2]
[373412144,1752989476402,-1636.42,0.00019287,2]
[373412145,1752989476413,-1131.76,0.00019287,2]
[373412146,1752989476422,-1222.092925,0.00019397,2]
[373412147,1752989476873,-299.177075,0.00019397,2]
[373412148,1752989476884,-358.711209,0.00019397,2]
[373412149,1752989476910,-1277.708791,0.00019397,2]
[373412150,1752989476920,-480.0,0.00019397,2]
[373412151,1752989476930,-1131.76,0.00019397,2]
[373412152,1752989476942,-151.0,0.00019506,2]
[373412153,1752989476952,-1098.99120956,0.00019506,2]
[373412154,1752989476973,-537.42879044,0.00019506,2]
[373412155,1752989476982,-480.0,0.00019506,2]
[373412156,1752989476991,-1521.27,0.00019506,2]
[373412157,1752989477001,-461.61078628,0.00019506,2]
[373412158,1752989477014,-670.14921372,0.00019506,2]
[373412159,1752989477024,-151.0,0.00019516,2]
[373412160,1752989477035,-500.0,0.00019519,2]
[373412161,1752989477047,-500.0,0.00019519,2]
[373412162,1752989477057,-500.0,0.00019519,2]
[373412163,1752989477072,-500.0,0.00019519,2]
[373412164,1752989477084,-180.98558835,0.00019519,2]
[373412165,1752989477095,-319.01441165,0.00019519,2]
[373412166,1752989477105,-500.0,0.00019519,2]
[373412167,1752989477114,-500.0,0.00019519,2]
[373412168,1752989477123,-500.0,0.00019519,2]
[373412169,1752989477133,-500.0,0.00019519,2]
[373412170,1752989477142,-500.0,0.00019519,2]
[373412171,1752989477152,-500.0,0.00019519,2]
[373412172,1752989477161,-500.0,0.00019519,2]
[373412173,1752989477171,-500.0,0.00019519,2]
[373412174,1752989477180,-500.0,0.00019519,2]
[373412175,1752989477189,-274.856324,0.00019602,2]
[373412176,1752989477198,-914.5324628,0.00019616,2]
[373412177,1752989477743,-339.00800001,0.00019178,2]
[373412178,1752989745098,2000.0,0.00018046,120]
[373412179,1752990008995,-150.0,0.00015395,2]
[373412186,1752990298687,510.0,0.00015449,2]
[373412203,1752990632227,-150.0,0.00016413,2]
[373412204,1752990632236,-1000.0,0.00016512,2]
[373412205,1752990632244,-1000.0,0.00016524,2]
[373412206,1752990632252,-150.0,0.00016643,2]
[373412207,1752990632261,-534.35348,0.00016649,2]
[373412208,1752990632283,-665.64652,0.00016649,2]
[373412209,1752990632293,-5887.53119828,0.0001665,2]
[373412210,1752990632302,-150.0,0.00016851,2]
[373412211,1752990632312,-150.0,0.00016955,2]
[373412212,1752990632322,-1444.34580962,0.00017032,2]
[373412213,1752990632331,-150.0,0.00017077,2]
[373412214,1752990632341,-150.0,0.00017111,2]
[373412215,1752990632350,-424.96,0.00017348,2]
[373412216,1752990632359,-277.87,0.00017374,2]
[373412217,1752990632368,-380.0,0.000175,2]
[373412218,1752990632377,-1000.0,0.00017684,2]
[373412219,1752990632386,-150.0,0.00017684,2]
[373412220,1752990632395,-172.2,0.00017699,2]
[373412221,1752990632404,-179.85,0.00017707,2]
[373412222,1752990632413,-150.0,0.00017745,2]
[373412223,1752990632422,-316.48045002,0.0001778,2]
[373412224,1752990632430,-150.0,0.00017786,2]
[373412225,1752990632439,-1210.0,0.00017852,2]
[373412226,1752990632448,-425.88570315,0.00017852,2]
[373412227,1752990632458,-510.0,0.00017876,2]
[373412228,1752990632467,-469.65039013,0.000179,2]
[373412229,1752990632475,-688.93456287,0.00018,2]
[373412230,1752990632486,-469.65038997,0.00018038,2]
[373412231,1752990632497,-4325.53,0.00018046,2]
[373412232,1752990632508,-150.0,0.00018068,2]
[373412233,1752990632518,-150.0,0.00018091,2]
[373412234,1752990632528,-150.0,0.00018116,2]
[373412235,1752990632539,-546.06352348,0.0001814,2]
[373412236,1752990632548,-1000.0,0.00018149,2]
[373412238,1752990632559,-1000.0,0.00018149,2]
[373412239,1752990632569,-924.73236166,0.00018149,2]
[373412240,1752990632586,-75.26763834,0.00018149,2]
[373412241,1752990632598,-150.0,0.00018168,2]
[373412242,1752990632608,-469.65038997,0.00018176,2]
[373412243,1752990632619,-488.99334806,0.00018244,2]
[373412244,1752990632628,-150.0,0.00018248,2]
[373412245,1752990632638,-511.23038676,0.00018281,2]
[373412247,1752990632754,-1168.76961324,0.00018281,2]
[373412249,1752990632764,-74.78514666,0.00018311,2]
[373412254,1752990632802,-75.21485334,0.00018311,2]
[373412256,1752990632811,-469.65038997,0.00018314,2]
[373412258,1752990632820,-250.0,0.00018328,2]
[373412260,1752990632830,-150.0,0.0001834,2]
[373412262,1752990632839,-150.0,0.00018356,2]
[373412264,1752990632849,-964.09,0.00018402,2]
[373412266,1752990632858,-2453.001594,0.00018409,2]
[373412268,1752990632867,-231.28369723,0.00018409,2]
[373412270,1752990632876,-469.65038997,0.00018452,2]
[373412272,1752990632886,-150.0,0.00018495,2]
[373412274,1752990632895,-150.0,0.00018512,2]
[373412276,1752990632904,-172.2,0.00018584,2]
[373412278,1752990632913,-469.65038997,0.0001859,2]
[373412280,1752990632923,-150.0,0.00018622,2]
[373412282,1752990632933,-186.97,0.00018624,2]
[373412284,1752990632942,-150.0,0.00018634,2]
[373412286,1752990632951,-150.0,0.0001866,2]
[373412288,1752990632960,-150.0,0.00018665,2]
[373412290,1752990632970,-190.0,0.00018678,7]
[373412292,1752990632979,-469.65038997,0.00018728,2]
[373412294,1752990632988,-150.0,0.00018759,2]
[373412296,1752990632997,-372.0,0.0001878,2]
[373412298,1752990633007,-36599.31311821,0.000188,2]
[373412360,1752990638444,-791.78392761,0.000188,2]
[373412560,1752990640389,-324.5207,0.000188,2]
[373412563,1752990640401,-2938.45225418,0.000188,2]
[373412565,1752990640410,-102.92838152,0.00018844,2]
[373412596,1752990640711,-47.07161848,0.00018844,2]
[373412598,1752990640722,-469.65038997,0.00018866,2]
[373412600,1752990640731,-150.0,0.00018872,2]
[373412602,1752990640740,-23.31158448,0.000189,2]
[373412608,1752990640782,-6680.41707263,0.000189,2]
[373412610,1752990640793,-303.81317016,0.000189,2]
[373412612,1752990640805,-33646.52817273,0.000189,2]
[373412614,1752990640814,-15905.22105699,0.000189,2]
[373412616,1752990640825,-2206.16190085,0.000189,2]
[373412915,1752990643410,-318.58039333,0.000189,2]
[373412919,1752990643422,-397.80106723,0.000189,2]
[373412939,1752990643520,-21826.3055816,0.000189,2]
[373412941,1752990643529,-150.0,0.00018913,2]
[373412943,1752990643539,-200.0,0.00018933,2]
[373412945,1752990643549,-150.0,0.0001895,2]
[373412947,1752990643559,-150.0,0.00018951,2]
[373412949,1752990643569,-150.0,0.00018952,2]
[373412951,1752990643579,-150.0,0.00018971,2]
[373412953,1752990643589,-200.0,0.00018977,2]
[373412955,1752990643598,-200.0,0.00018982,2]
[373412957,1752990643608,-182.44,0.00018994,2]
[373412959,1752990643618,-40654.07,0.00019,2]
[373412961,1752990643628,-469.65038997,0.00019003,2]
[373412963,1752990643637,-564.80159397,0.00019008,2]
[373412965,1752990643647,-189.60194293,0.00019046,2]
[373412967,1752990643656,-150.0,0.00019061,2]
[373412969,1752990643665,-337.6427,0.00019078,2]
[373412971,1752990643676,-454.1413,0.00019078,2]
[373412973,1752990643685,-27645.07380321,0.000191,2]
[373412976,1752990643703,-4243.92349707,0.000191,2]
[373413006,1752990643961,244.81,0.00013699,2]
[373414200,1752990768013,151.0,0.00025,120]
[373414204,1752990926439,200.0,0.0002491,120]
[373414210,1752991203170,6304.96312344,0.00015493,2]
[373414211,1752991203449,5000.0,0.00015493,2]
[373414212,1752991203726,5000.0,0.00015493,2]
[373414213,1752991204019,5000.0,0.00015493,2]
[373414214,1752991207498,5000.0,0.00015493,2]
[373414216,1752991573095,875.022032,0.00015922,2]
[373414260,1752991832552,-150.0,0.00016003,2]
[373414261,1752991832561,-150.0,0.00016003,2]
[373414262,1752991832570,-80.03275372,0.00016441,2]